bitfinex-derivatives/quotes_BNBF0:USTF0_20260110
["timestamp","ask_amount","ask_price","bid_price","bid_amount"]
[1768074180197,0.19002064,916.19,915.2,0.68848608]
[1768074180497,0.19002064,916.19,915.21,0.68848608]
[1768074180701,0.19002064,916.19,915.22,0.68848608]
[1768074180901,0.19002064,916.19,915.04,2.018]
[1768074181200,0.19002064,916.19,915.05,0.68847267]
[1768074181401,0.19002064,916.19,915.06,0.68847267]
[1768074181600,0.19002064,916.19,915.07,0.68847267]
[1768074181796,0.19002064,916.19,915.08,0.68847267]
[1768074181997,0.19002064,916.19,915.09,0.68847267]
[1768074182198,0.19002064,916.19,915.1,0.68847267]
[1768074182500,0.19002064,916.19,915.11,0.68847267]
[1768074182800,0.19002064,916.19,915.12,0.68847267]
[1768074182998,0.19002064,916.19,915.13,0.68847267]
[1768074183302,0.19002064,916.19,915.14,0.68847267]
[1768074183601,0.19002064,916.19,915.15,0.68847267]
[1768074183896,0.19002064,916.19,915.16,0.68847267]
[1768074184101,0.19002064,916.19,915.17,0.68847267]
[1768074184298,0.19002064,916.19,915.18,0.68847267]
[1768074184498,0.19002064,916.19,915.19,0.68847267]
[1768074184700,0.19002064,916.19,915.2,0.68847267]
[1768074184898,0.19002064,916.19,915.21,0.68847267]
[1768074185102,0.19002064,916.19,915.22,0.68847267]
[1768074185300,0.19002064,916.19,915.04,2.018]
[1768074185497,0.19002064,916.19,915.05,0.68846637]
[1768074185698,0.19002064,916.19,915.06,0.68846637]
[1768074185900,0.19002064,916.19,915.07,0.68846637]
[1768074186202,0.19002064,916.19,915.08,0.68846637]
[1768074186400,0.19002064,916.19,915.09,0.68846637]
[1768074186600,0.19002064,916.19,915.1,0.68846637]
[1768074186900,0.19002064,916.19,915.11,0.68846637]
[1768074187099,0.19002064,916.19,915.12,0.68846637]
[1768074187398,0.19002064,916.19,915.13,0.68846637]
[1768074187603,0.19002064,916.19,915.14,0.68846637]
[1768074187900,0.19002064,916.19,915.04,2.018]
[1768074187901,0.19002064,916.19,915.15,0.68846426]
[1768074188200,0.19002064,916.19,915.16,0.68846426]
[1768074188401,0.19002064,916.19,915.17,0.68846426]
[1768074188699,0.19002064,916.19,915.18,0.68846426]
[1768074188998,0.19002064,916.19,915.19,0.68846426]
[1768074189200,0.19002064,916.19,915.2,0.68846426]
[1768074189404,0.19002064,916.19,915.21,0.68846426]
[1768074189605,0.19002064,916.19,915.04,2.018]
[1768074189805,0.19002064,916.19,915.05,0.68870157]
[1768074190004,0.19002064,916.19,915.06,0.68870157]
[1768074190206,0.19002064,916.19,915.07,0.68870157]
[1768074190405,0.19002064,916.19,915.08,0.68870157]
[1768074190603,0.19002064,916.19,915.09,0.68870157]
[1768074190802,0.19002064,916.19,915.1,0.68870157]
[1768074191008,0.19002064,916.19,915.11,0.68870157]
[1768074191208,0.19002064,916.19,915.12,0.68870157]
[1768074191403,0.19002064,916.19,915.13,0.68870157]
[1768074191604,0.19002064,916.19,915.14,0.68869961]
[1768074191804,0.19002064,916.19,915.15,0.68869961]
[1768074192004,0.19002064,916.19,915.16,0.68869961]
[1768074192306,0.19002064,916.19,915.17,0.68869961]
[1768074192506,0.19002064,916.19,915.18,0.68869961]
[1768074192704,0.19002064,916.19,915.19,0.68869961]
[1768074192909,0.19002064,916.19,915.2,0.68869961]
[1768074193111,0.19002064,916.19,915.04,2.018]
[1768074193310,0.19002064,916.19,915.05,0.68952012]
[1768074193506,0.19002064,916.19,915.06,0.68952012]
[1768074193710,0.19002064,916.19,915.07,0.68952012]
[1768074193910,0.19002064,916.19,915.08,0.68952012]
[1768074194110,0.19002064,916.19,915.09,0.68952012]
[1768074194306,0.19002064,916.19,915.1,0.68952012]
[1768074194610,0.19002064,916.19,915.11,0.68952012]
[1768074194906,0.19002064,916.19,915.12,0.68952012]
[1768074195106,0.19002064,916.19,915.13,0.68952012]
[1768074195306,0.19002064,916.19,915.14,0.68952012]
[1768074195510,0.19002064,916.19,915.04,2.018]
[1768074195511,0.19002064,916.19,915.15,0.68952012]
[1768074195711,0.19002064,916.19,915.16,0.68952012]
[1768074195911,0.19002064,916.19,915.17,0.68952012]
[1768074196210,0.19002064,916.19,915.18,0.68952012]
[1768074196411,0.19002064,916.19,915.19,0.68952012]
[1768074196707,0.19002064,916.19,915.04,2.018]
[1768074196908,0.19002064,916.19,915.05,0.68935934]
[1768074197107,0.19002064,916.19,915.06,0.68935934]
[1768074197308,0.19002064,916.19,915.07,0.68935934]
[1768074197508,0.19002064,916.19,915.08,0.68935934]
[1768074197713,0.19002064,916.19,915.09,0.68935934]
[1768074198010,0.19002064,916.19,915.1,0.68935934]
[1768074198213,0.19002064,916.19,915.11,0.68935934]
[1768074198414,0.19002064,916.19,915.12,0.68935934]
[1768074198614,0.19002064,916.19,915.04,2.018]
[1768074198811,0.19002064,916.19,915.05,0.68927304]
[1768074199111,0.19002064,916.19,915.06,0.68927304]
[1768074199316,0.19002064,916.19,915.07,0.68927304]
[1768074199517,0.19002064,916.19,915.08,0.68927304]
[1768074199815,0.19002064,916.19,915.09,0.68927304]
[1768074200116,0.19002064,916.19,915.1,0.68927304]
[1768074200416,0.19002064,916.19,915.04,2.018]
[1768074200616,0.19002064,916.19,915.05,0.68909918]
[1768074200915,0.19002064,916.19,915.06,0.68909918]
[1768074201112,0.19002064,916.19,915.07,0.68909918]
[1768074201311,0.19002064,916.19,915.08,0.68909918]
[1768074201515,0.19002064,916.19,915.09,0.68909918]
[1768074201712,0.19002064,916.19,914.91,7.24435807]
[1768074201919,0.19002064,916.19,914.92,0.68903134]
[1768074202111,0.19002064,916.19,914.93,0.68903134]
[1768074202316,0.19002064,916.19,914.94,0.68903134]
[1768074202516,0.19002064,916.19,914.91,7.24435807]
[1768074202715,0.19002064,916.19,914.92,0.68931809]
[1768074203017,0.19002064,916.19,914.91,7.24435807]
[1768074203217,0.19002064,916.19,914.92,0.68931817]
[1768074203516,0.19002064,916.19,914.92,2.224]
[1768074216522,0.19002064,916.19,914.91,7.24435807]
[1768074216719,0.19002064,916.19,914.48,0.19000975]
[1768074216720,0.19002064,916.19,914.29,0.81679657]
[1768074217023,0.19002064,916.19,914.3,0.68683968]
[1768074217223,0.19002064,916.19,914.31,0.68683968]
[1768074217422,0.19002064,916.19,914.32,0.68683968]
[1768074217622,0.19002064,916.19,914.33,0.68683968]
[1768074217823,0.19002064,916.19,914.34,0.68683968]
[1768074218120,0.19002064,916.19,914.35,0.68683968]
[1768074218324,0.19002064,916.19,914.36,0.68683968]
[1768074218523,0.19002064,916.19,914.37,0.68683968]
[1768074218721,0.19002064,916.19,914.38,0.68683968]
[1768074219022,0.19002064,916.19,914.39,0.68683968]
[1768074219318,0.19002064,916.19,914.4,0.68683968]
[1768074219520,0.19002064,916.19,914.41,0.68683968]
[1768074219724,0.19002064,916.19,914.42,0.68683968]
[1768074219926,0.19002064,916.19,914.43,0.68683968]
[1768074220124,0.19002064,916.19,914.44,0.68683968]
[1768074220426,0.19002064,916.19,914.45,0.68683968]
[1768074220725,0.19002064,916.19,914.46,0.68683968]
[1768074220925,0.19002064,916.19,914.47,0.68683968]
[1768074221126,0.19002064,916.19,914.48,0.68683968]
[1768074221322,0.19002064,916.19,914.42,2.111]
[1768074221520,0.19002064,916.19,914.43,0.68651902]
[1768074221721,0.19002064,916.19,914.44,0.68651902]
[1768074222021,0.19002064,916.19,914.45,0.68651902]
[1768074222320,0.19002064,916.19,914.46,0.68651902]
[1768074222521,0.19002064,916.19,914.47,0.68651902]
[1768074222724,0.19002064,916.19,914.48,0.68651902]
[1768074222925,0.19002064,916.19,914.42,2.111]
[1768074223126,0.19002064,916.19,914.43,0.68662461]
[1768074223326,0.19002064,916.19,914.42,2.111]
[1768074223327,0.19002064,916.19,914.44,0.68662461]
[1768074223527,0.19002064,916.19,914.45,0.68662461]
[1768074223729,0.19002064,916.19,914.46,0.68662461]
[1768074224023,0.19002064,916.19,914.42,2.111]
[1768074227928,0.19002064,916.19,914.43,0.68603085]
[1768074228133,0.19002064,916.19,914.44,0.68603085]
[1768074228431,0.19002064,916.19,914.42,2.111]
[1768074228631,0.19002064,916.19,914.43,0.68587755]
[1768074228832,0.19002064,916.19,914.44,0.68587755]
[1768074229033,0.19002064,916.19,914.42,2.111]
[1768074229329,0.19002064,916.19,914.43,0.68585511]
[1768074229534,0.19002064,916.19,914.44,0.68585511]
[1768074229830,0.19002064,916.19,914.42,2.111]
[1768074230130,0.19002064,916.19,914.43,0.68585763]
[1768074230431,0.19002064,916.19,914.44,0.68585763]
[1768074230733,0.19002064,916.19,914.42,2.111]
[1768074230934,0.19002064,916.19,914.43,0.68587554]
[1768074231135,0.19002064,916.19,914.44,0.68587554]
[1768074231334,0.19002064,916.19,914.45,0.68590897]
[1768074231534,0.19002064,916.19,914.42,2.111]
[1768074231735,0.19002064,916.19,914.43,0.68590897]
[1768074231934,0.19002064,916.19,914.44,0.68590897]
[1768074232134,0.19002064,916.19,914.45,0.68590897]
[1768074232336,0.19002064,916.19,914.42,2.111]
[1768074232536,0.19002064,916.19,914.43,0.68595841]
[1768074232736,0.19002064,916.19,914.44,0.68595841]
[1768074233032,0.19002064,916.19,914.45,0.68595841]
[1768074233235,0.19002064,916.19,914.42,2.111]
[1768074233433,0.19002064,916.19,914.43,0.68595849]
[1768074233634,0.19002064,916.19,914.44,0.68595849]
[1768074233833,0.19002064,916.19,914.45,0.68595849]
[1768074234037,0.19002064,916.19,914.46,0.68595849]
[1768074234338,0.19002064,916.19,914.42,2.111]
[1768074234535,0.19002064,916.19,914.43,0.68610763]
[1768074234734,0.19002064,916.19,914.42,2.111]
[1768074243348,2.91681861,916.19,914.42,2.111]
[1768074244446,2.72679797,916.18,914.42,2.111]
[1768074245550,2.72679797,916.17,914.42,2.111]
[1768074246650,2.72679797,916.16,914.42,2.111]
[1768074247651,2.72679797,916.14,914.42,2.111]
[1768074248048,2.72679797,916.05,914.42,2.111]
[1768074248552,2.72679797,916.04,914.42,2.111]
[1768074254854,2.72679797,916.03,914.42,2.111]
[1768074255358,2.72679797,916.04,914.42,2.111]
[1768074255755,2.72679797,916.03,914.42,2.111]
[1768074256354,2.72679797,916.06,914.42,2.111]
[1768074257361,2.72679797,916.05,914.42,2.111]
[1768074257960,2.72679797,916.05,914.43,0.6894174]
[1768074258260,2.72679797,916.05,914.44,0.6894174]
[1768074258459,2.72679797,916.14,914.45,0.6894174]
[1768074258658,2.72679797,916.14,914.46,0.6894174]
[1768074258858,2.72679797,916.14,914.42,2.111]
[1768074259160,2.72679797,916.14,914.43,0.68950504]
[1768074259361,2.72679797,916.14,914.44,0.68950504]
[1768074259663,2.72679797,916.14,914.45,0.68950504]
[1768074259862,2.72679797,916.14,914.46,0.68950504]
[1768074260158,2.72679797,916.14,914.47,0.68961785]
[1768074260362,2.72679797,916.14,914.42,2.111]
[1768074260562,2.72679797,916.13,914.43,0.68972158]
[1768074260762,2.72679797,916.13,914.44,0.68972158]
[1768074261058,2.72679797,916.13,914.45,0.68972158]
[1768074261256,2.72679797,916.13,914.46,0.68972158]
[1768074261561,2.72679797,916.12,914.47,0.68972158]
[1768074261761,2.72679797,916.12,914.48,0.68972158]
[1768074261961,2.72679797,916.12,914.42,2.111]
[1768074262258,2.72679797,916.12,914.43,0.68983219]
[1768074262556,2.72679797,916.12,914.44,0.68983219]
[1768074262761,2.72679797,916.12,914.45,0.68983219]
[1768074263060,2.72679797,916.12,914.46,0.68983219]
[1768074263262,2.72679797,916.12,914.47,0.68983219]
[1768074263558,2.72679797,916.12,914.48,0.68983219]
[1768074263761,2.72679797,916.12,914.42,2.111]
[1768074263961,2.72679797,916.12,914.43,0.6899392]
[1768074264157,2.72679797,916.12,914.44,0.6899392]
[1768074264357,2.72679797,916.12,914.45,0.6899392]
[1768074264658,2.72679797,916.11,914.46,0.6899392]
[1768074264857,2.72679797,916.11,914.47,0.6899392]
[1768074265058,2.72679797,916.11,914.48,0.6899392]
[1768074265260,2.72679797,916.11,914.49,0.6899392]
[1768074265460,2.72679797,916.11,914.42,2.111]
[1768074265658,2.72679797,916.11,914.43,0.69006039]
[1768074265859,2.72679797,916.11,914.44,0.69006039]
[1768074266062,2.72679797,916.11,914.45,0.69006039]
[1768074266362,2.72679797,916.11,914.46,0.69006039]
[1768074266562,2.72679797,916.11,914.47,0.69006039]
[1768074266859,2.72679797,916.07,914.42,2.111]
[1768074267059,2.72679797,916.07,914.43,0.69020817]
[1768074267263,2.72679797,916.07,914.44,0.69020817]
[1768074267463,2.72679797,916.07,914.45,0.69020817]
[1768074267663,2.72679797,916.07,914.42,2.111]
[1768074267664,2.72679797,916.07,914.46,0.69020817]
[1768074267863,2.72679797,916.07,914.42,2.111]
[1768074268066,2.72679797,916.07,914.43,0.69027674]
[1768074268267,2.72679797,915.92,914.42,2.111]
[1768074268763,2.72679797,915.91,914.42,2.111]
[1768074269364,2.72679797,915.76,914.42,2.111]
[1768074269968,2.72679797,915.68,914.42,2.111]
[1768074270366,2.72679797,915.7,914.42,2.111]
[1768074271569,2.72679797,915.67,914.42,2.111]
[1768074272366,2.72679797,915.69,914.42,2.111]
[1768074273570,2.72679797,915.71,914.42,2.111]
[1768074274672,2.72679797,915.72,914.42,2.111]
[1768074275574,2.72679797,915.74,914.42,2.111]
[1768074276576,2.72679797,915.75,914.42,2.111]
[1768074277277,2.72679797,915.76,914.42,2.111]
[1768074278278,2.72679797,915.75,914.42,2.111]
[1768074278675,2.72679797,915.74,914.42,2.111]
[1768074279177,2.72679797,915.75,914.42,2.111]
[1768074280276,2.72679797,915.76,913.51,0.81679657]
[1768074281280,2.72679797,915.77,913.51,0.81679657]
[1768074282379,2.72679797,915.78,913.51,0.81679657]
[1768074282782,2.72679797,915.78,913.84,2.46]
[1768074282982,2.72679797,915.68,913.84,2.46]
[1768074283483,2.72679797,915.69,913.84,2.46]
[1768074284385,2.72679797,915.71,913.84,2.46]
[1768074285482,2.72679797,915.72,913.84,2.46]
[1768074287587,2.72679797,915.74,913.84,2.46]
[1768074288087,2.72679797,915.68,913.84,2.46]
[1768074288592,2.72679797,915.69,913.84,2.46]
[1768074289591,2.72679797,915.78,913.84,2.46]
[1768074290190,2.72679797,915.79,913.84,2.46]
[1768074292390,2.72679797,915.8,913.84,2.46]
[1768074293895,2.72679797,915.8,913.4,0.81679657]
[1768074294792,2.72679797,915.78,913.39,0.81679657]
[1768074295293,2.72679797,915.79,913.39,0.81679657]
[1768074296493,2.72679797,915.78,913.84,2.402]
[1768074298495,2.72679797,915.67,913.84,2.402]
[1768074299999,2.72679797,915.97,913.85,0.68510773]
[1768074300199,2.72679797,915.97,913.86,0.68510773]
[1768074300397,2.72679797,915.97,913.87,0.68510773]
[1768074300599,2.72679797,916.0,913.88,0.68510773]
[1768074300800,2.72679797,916.0,913.89,0.68510773]
[1768074301001,2.72679797,916.0,913.9,0.68510773]
[1768074301300,2.72679797,916.0,913.91,0.68510773]
[1768074301595,2.72679797,915.99,913.92,0.68510773]
[1768074301899,2.72679797,915.99,913.84,2.402]
[1768074302200,2.72679797,915.99,913.85,0.68612339]
[1768074302496,2.72679797,915.98,913.86,0.68612339]
[1768074302696,2.72679797,915.98,913.87,0.68612339]
[1768074302900,2.72679797,915.98,913.84,2.402]
[1768074302901,2.72679797,915.98,913.88,0.68612339]
[1768074303094,2.72679797,915.98,913.89,0.68612339]
[1768074303299,2.72679797,915.98,913.9,0.68612339]
[1768074303498,2.72679797,915.98,913.91,0.68612339]
[1768074303798,2.72679797,915.97,913.92,0.68612339]
[1768074303998,2.72679797,915.97,913.93,0.68612339]
[1768074304198,2.72679797,915.96,913.94,0.68612339]
[1768074304495,2.72679797,915.96,913.84,2.402]
[1768074304697,2.72679797,915.96,913.85,0.6867909]
[1768074304997,2.72679797,915.96,913.86,0.6867909]
[1768074305298,2.72679797,915.95,913.87,0.6867909]
[1768074305502,2.72679797,915.95,913.88,0.6867909]
[1768074305800,2.72679797,915.95,913.89,0.6867909]
[1768074306001,2.72679797,915.95,913.9,0.6867909]
[1768074306201,2.72679797,915.93,913.91,0.6867909]
[1768074306401,2.72679797,915.93,913.92,0.6867909]
[1768074306698,2.72679797,915.93,913.93,0.6867909]
[1768074307002,2.72679797,915.93,913.94,0.6867909]
[1768074307301,2.72679797,915.92,913.95,0.6867909]
[1768074307501,2.72679797,915.92,913.96,0.6867909]
[1768074307798,2.72679797,915.92,913.84,2.402]
[1768074308001,2.72679797,915.92,913.85,0.68715781]
[1768074308200,2.72679797,915.92,913.86,0.68715781]
[1768074308399,2.72679797,916.01,913.87,0.68715781]
[1768074308597,2.72679797,916.01,913.88,0.68715781]
[1768074308797,2.72679797,916.01,913.89,0.68715781]
[1768074309001,2.72679797,916.01,913.9,0.68715781]
[1768074309199,2.72679797,916.01,913.91,0.68715781]
[1768074309502,2.72679797,915.99,913.92,0.68715781]
[1768074309698,2.72679797,915.99,913.93,0.68715781]
[1768074309899,2.72679797,915.99,913.94,0.68715781]
[1768074310095,2.72679797,915.99,913.95,0.68715781]
[1768074310300,2.72679797,915.98,913.96,0.68715781]
[1768074310498,2.72679797,915.98,913.97,0.68715781]
[1768074310698,2.72679797,915.98,913.98,0.68715781]
[1768074310904,2.72679797,915.98,913.99,0.68715781]
[1768074311103,2.72679797,915.98,914.0,0.68715781]
[1768074311300,2.72679797,915.98,913.84,2.402]
[1768074311301,2.72679797,915.98,914.01,0.68715781]
[1768074311501,2.72679797,915.96,914.02,0.68715781]
[1768074311805,2.72679797,915.96,914.03,0.68715781]
[1768074312005,2.72679797,915.96,914.04,0.68715781]
[1768074312205,2.72679797,915.96,914.05,0.68715781]
[1768074312403,2.72679797,915.96,914.06,0.68715781]
[1768074312701,2.72679797,915.94,914.07,0.68715781]
[1768074312900,2.72679797,915.94,914.08,0.68715781]
[1768074313099,2.72679797,915.94,914.09,0.68715781]
[1768074313301,2.72679797,915.94,914.1,0.68715781]
[1768074313501,2.72679797,915.93,914.11,0.68715781]
[1768074313704,2.72679797,915.93,914.12,0.68715781]
[1768074313902,2.72679797,915.93,913.84,2.402]
[1768074314102,2.72679797,915.93,913.85,0.68916843]
[1768074314306,2.72679797,915.93,913.92,0.19019719]
[1768074314506,0.19002064,916.19,914.01,0.81679657]
[1768074314507,2.72679797,916.06,914.01,0.81679657]
[1768074314704,0.19002064,916.19,914.15,0.81679657]
[1768074314906,0.19002064,916.19,914.16,0.68916843]
[1768074315106,0.19002064,916.19,914.17,0.68916843]
[1768074315306,0.19002064,916.19,914.18,0.68916843]
[1768074315507,0.19002064,916.19,914.19,0.68916843]
[1768074315708,0.19002064,916.19,914.2,0.68916843]
[1768074316003,0.19002064,916.19,914.21,0.68916843]
[1768074316207,0.19002064,916.19,914.22,0.68916843]
[1768074316503,0.19002064,916.19,914.23,0.68916843]
[1768074316702,0.19002064,916.19,914.24,0.68916843]
[1768074317005,0.19002064,916.19,914.31,0.81679657]
[1768074317206,0.19002064,916.19,914.32,0.68916843]
[1768074317403,0.19002064,916.19,914.41,0.81679657]
[1768074317608,0.19002064,916.19,914.42,0.68916843]
[1768074317804,0.19002064,916.19,914.43,0.68916843]
[1768074318003,0.19002064,916.19,914.44,0.68916843]
[1768074318203,0.19002064,916.19,914.45,0.68916843]
[1768074318408,0.19002064,916.19,914.46,0.68916843]
[1768074318604,0.19002064,916.19,914.47,0.68916843]
[1768074318908,0.19002064,916.19,914.48,0.68916843]
[1768074319104,0.19002064,916.19,914.49,0.68916843]
[1768074319305,0.19002064,916.19,914.5,0.68916843]
[1768074319505,0.19002064,916.19,914.51,0.68916843]
[1768074319707,0.19002064,916.19,914.52,0.68916843]
[1768074319908,0.19002064,916.19,914.53,0.68916843]
[1768074320108,0.19002064,916.19,914.54,0.68916843]
[1768074320405,0.19002064,916.19,914.55,0.68916843]
[1768074320605,0.19002064,916.19,914.56,0.68916843]
[1768074320808,0.19002064,916.19,914.57,0.68916843]
[1768074321006,0.19002064,916.19,914.58,0.68916843]
[1768074321309,0.19002064,916.19,914.59,0.68916843]
[1768074321505,0.19002064,916.19,914.6,0.68916843]
[1768074321709,0.19002064,916.19,914.31,0.81679657]
[1768074321906,0.19002064,916.19,914.32,0.68406209]
[1768074322205,0.19002064,916.19,914.33,0.68406209]
[1768074322409,0.19002064,916.19,914.34,0.68406209]
[1768074322606,0.19002064,916.19,914.35,0.68406209]
[1768074322809,0.19002064,916.19,914.3,0.81679657]
[1768074322810,0.19002064,916.19,914.36,0.68406209]
[1768074323010,0.19002064,916.19,914.37,0.68406209]
[1768074323212,0.19002064,916.19,914.38,0.68406209]
[1768074323412,0.19002064,916.19,914.39,0.68406209]
[1768074323608,0.19002064,916.19,914.4,0.68406209]
[1768074323811,0.19002064,916.19,914.37,7.57137504]
[1768074323812,0.19002064,916.19,914.41,0.68406209]
[1768074324009,0.19002064,916.19,914.42,0.68406209]
[1768074324208,0.19002064,916.19,914.43,0.68406209]
[1768074324410,0.19002064,916.19,914.44,0.68406209]
[1768074324609,0.19002064,916.19,914.45,0.68406209]
[1768074324911,0.19002064,916.19,914.46,0.68406209]
[1768074325112,0.19002064,916.19,914.47,0.68406209]
[1768074325312,0.19002064,916.19,914.48,0.68406209]
[1768074325612,0.19002064,916.19,914.49,0.68406209]
[1768074325813,0.19002064,916.19,914.5,0.68406209]
[1768074326009,0.19002064,916.19,914.51,0.68406209]
[1768074326314,0.19002064,916.19,914.52,0.68406209]
[1768074326510,0.19002064,916.19,914.53,0.68406209]
[1768074326813,0.19002064,916.19,914.37,7.57137504]
[1768074327013,0.19002064,916.19,914.38,0.68257476]
[1768074327213,0.19002064,916.19,914.39,0.68257476]
[1768074327510,0.19002064,916.19,914.4,0.68257476]
[1768074327714,0.19002064,916.19,914.41,0.68257476]
[1768074328013,0.19002064,916.19,914.42,0.68257476]
[1768074328208,0.19002064,916.19,914.43,0.68257476]
[1768074328412,0.19002064,916.19,914.44,0.68257476]
[1768074328708,0.19002064,916.19,914.45,0.68257476]
[1768074328912,0.19002064,916.19,914.46,0.68257476]
[1768074329113,0.19002064,916.19,914.47,0.68257476]
[1768074329314,0.19002064,916.19,914.48,0.68257476]
[1768074329514,0.19002064,916.19,914.49,0.68257476]
[1768074329816,0.19002064,916.19,914.5,0.68257476]
[1768074330115,0.19002064,916.19,914.51,0.68257476]
[1768074330311,0.19002064,916.19,914.52,0.68257476]
[1768074330511,0.19002064,916.19,914.53,0.68257476]
[1768074330712,0.19002064,916.19,914.54,0.68257476]
[1768074331016,0.19002064,916.19,914.55,0.68257476]
[1768074331216,0.19002064,916.19,914.56,0.68257476]
[1768074331415,0.19002064,916.19,914.57,0.68257476]
[1768074331614,0.19002064,916.19,914.37,7.57137504]
[1768074331812,0.19002064,916.19,914.38,0.68216895]
[1768074332017,0.19002064,916.19,914.39,0.68216895]
[1768074332212,0.19002064,916.19,914.4,0.68216895]
[1768074332412,0.19002064,916.19,914.41,0.68216895]
[1768074332613,0.19002064,916.19,914.42,0.68216895]
[1768074332814,0.19002064,916.19,914.43,0.68216895]
[1768074333017,0.19002064,916.19,914.37,7.57137504]
[1768074333018,0.19002064,916.19,914.44,0.68216895]
[1768074333216,0.19002064,916.19,914.45,0.68216895]
[1768074333419,0.19002064,916.19,914.46,0.68216895]
[1768074333619,0.19002064,916.19,914.47,0.68216895]
[1768074333920,0.19002064,916.19,914.48,0.68216895]
[1768074334116,0.19002064,916.19,914.49,0.68216895]
[1768074334315,0.19002064,916.19,914.5,0.68216895]
[1768074334519,0.19002064,916.19,914.51,0.68216895]
[1768074334720,0.19002064,916.19,914.52,0.68216895]
[1768074335019,0.19002064,916.19,914.53,0.68216895]
[1768074335219,0.19002064,916.19,914.54,0.68216895]
[1768074335516,0.19002064,916.19,914.55,0.68216895]
[1768074335714,0.19002064,916.19,914.56,0.68216895]
[1768074335916,0.19002064,916.19,914.57,0.68216895]
[1768074336115,0.19002064,916.19,914.58,0.68216895]
[1768074336318,0.19002064,916.19,914.59,0.68216895]
[1768074336518,0.19002064,916.19,914.6,0.68216895]
[1768074336716,0.19002064,916.19,914.61,0.68216895]
[1768074336916,0.19002064,916.19,914.62,0.68216895]
[1768074337113,0.19002064,916.19,914.63,0.68216895]
[1768074337316,0.19002064,916.19,914.64,0.68216895]
[1768074337619,0.19002064,916.19,914.65,0.68216895]
[1768074337820,0.19002064,916.19,914.66,0.68216895]
[1768074338020,0.19002064,916.19,914.67,0.68216895]
[1768074338321,0.19002064,916.19,914.68,0.68216895]
[1768074338519,0.19002064,916.19,914.48,0.81679657]
[1768074338520,0.19002064,916.19,914.69,0.68216895]
[1768074338716,0.19002064,916.19,914.7,0.68216895]
[1768074338923,0.19002064,916.19,914.71,0.68216895]
[1768074339218,0.19002064,916.19,914.72,0.68216895]
[1768074339417,0.19002064,916.19,914.73,0.68216895]
[1768074339718,0.19002064,916.19,914.74,0.68216895]
[1768074339922,0.19002064,916.19,914.75,0.68216895]
[1768074340122,0.19002064,916.19,914.76,0.68216895]
[1768074340317,0.19002064,916.19,914.77,0.68216895]
[1768074340518,0.19002064,916.19,914.78,0.68216895]
[1768074340722,0.19002064,916.19,914.49,0.81679657]
[1768074341020,0.19002064,916.19,914.5,0.68192584]
[1768074341224,0.19002064,916.19,914.51,0.68192584]
[1768074341419,0.19002064,916.19,914.52,0.68192584]
[1768074341623,0.19002064,916.19,914.53,0.68192584]
[1768074341823,0.19002064,916.19,914.54,0.68192584]
[1768074342023,0.19002064,916.19,914.55,0.68192584]
[1768074342323,0.19002064,916.19,914.6,0.81679657]
[1768074342622,0.19002064,916.19,914.61,0.68192584]
[1768074342822,0.19002064,916.19,914.62,0.68192584]
[1768074343024,0.19002064,916.19,914.63,0.68192584]
[1768074343224,0.19002064,916.19,914.64,0.68192584]
[1768074343424,0.19002064,916.19,914.65,0.68192584]
[1768074343624,0.19002064,916.19,914.66,0.68192584]
[1768074343821,0.19002064,916.19,914.67,0.68192584]
[1768074344125,0.19002064,916.19,914.68,0.68192584]
[1768074344324,0.19002064,916.19,914.69,0.68192584]
[1768074344522,0.19002064,916.19,914.7,0.68192584]
[1768074344720,0.19002064,916.19,914.63,0.81679657]
[1768074344721,0.19002064,916.19,914.71,0.68192584]
[1768074344922,0.19002064,916.19,914.72,0.68192584]
[1768074345125,0.19002064,916.19,914.46,1.09936892]
[1768074345322,0.19002064,916.19,914.63,0.80839746]
[1768074345520,0.19002064,916.19,914.64,0.68259238]
[1768074345725,0.19002064,916.19,914.65,0.68259238]
[1768074345924,0.19002064,916.19,914.66,0.68259238]
[1768074346123,0.19002064,916.19,914.67,0.68259238]
[1768074346326,0.19002064,916.19,914.68,0.68259238]
[1768074346524,0.19002064,916.19,914.69,0.68259238]
[1768074346727,0.19002064,916.19,914.7,0.68259238]
[1768074346927,0.19002064,916.19,914.71,0.68259238]
[1768074347126,0.19002064,916.19,914.72,0.68259238]
[1768074347327,0.19002064,916.19,914.73,0.68259238]
[1768074347522,0.19002064,916.19,914.74,0.68259238]
[1768074347827,0.19002064,916.19,914.75,0.68259238]
[1768074348026,0.19002064,916.19,914.76,0.68259238]
[1768074348324,0.19002064,916.19,914.77,0.68259238]
[1768074348628,0.19002064,916.19,914.78,0.68259238]
[1768074348823,0.19002064,916.19,914.79,0.68259238]
[1768074349128,0.19002064,916.19,914.8,0.68259238]
[1768074349326,0.19002064,916.19,914.81,0.68259238]
[1768074349528,0.19002064,916.19,914.82,0.68259238]
[1768074349729,0.19002064,916.19,914.83,0.68259238]
[1768074349929,0.19002064,916.19,914.84,0.68259238]
[1768074350129,0.19002064,916.19,914.85,0.68259238]